[Event "1000GM Spring GM-A 2024"]
[Site "New York"]
[Date "2024.03.31"]
[Round "8.2"]
[White "Ostrovskiy, Aleksandr"]
[Black "Sethuraman, Sandeep"]
[Result "1-0"]
[ECO "D12"]
[WhiteElo "2411"]
[BlackElo "2381"]
[Annotator "TA"]
[PlyCount "104"]
[EventDate "2024.03.26"]
[EventType "tourn"]
[EventCountry "USA"]
[SourceTitle "playchess.com"]
[Source "ChessBase"]
[SourceQuality "1"]
[TimeControl "5400+30"]

{[%evp 12,104,34,22,36,0,37,26,29,29,41,19,32,0,0,0,25,12,97,85,91,81,256,101,226,111,266,252,252,181,168,183,172,175,234,227,221,158,170,150,161,120,123,121,131,68,261,24,38,43,27,35,55,55,71,30,35,13,20,0,0,-8,0,0,0,0,0,0,0,-47,-50,-51,-50,-51,-48,-47,-42,-52,280,272,466,420,258,270,724,698,1411,1427,1413,1260,866,809,2153,2306,29951]} 1. Nf3 {[%emt 0:06:52]} d5 {[%emt 0:00:26]} 2. e3 {[%emt 0:00:34]} Nf6 {[%emt 0:00:06]} 3. c4 {[%emt 0:00:04]} c6 {[%emt 0:00:06]} 4. d4 {[%emt 0:03:14]} Bf5 {[%emt 0:00:07]} 5. Nc3 {[%emt 0:02:29]} e6 {[%emt 0:00:07]} 6. Nh4 {[%emt 0:02:02]} Be4 {[%emt 0:00:06]} 7. f3 {[%emt 0:00:06]} Bg6 {[%emt 0:00:05]} 8. Bd2 {[%emt 0:00:08]} Be7 {[%emt 0:00:54]} 9. Nxg6 {[%emt 0:03:42]} hxg6 {[%emt 0:00:06] White has an edge.} 10. Qc2 {[%emt 0:00:30]} a6 {[%emt 0:14:55]} 11. O-O-O {[%emt 0:01:11]} Nbd7 {[%emt 0:04:52]} 12. Kb1 {[%emt 0:02:13]} dxc4 $1 {[%emt 0:03:27]} 13. Bxc4 {[%emt 0:00:36]} c5 {[%emt 0:03:11]} 14. g4 {[%emt 0:02:21][%cal Bg2g4,Bg4g5][%mdl 32]} b5 {[%emt 0:06:00] [#]} (14... Nb6 $11 {remains equal.} 15. dxc5 Nxc4 16. Qa4+ Nd7 17. Qxc4 Nxc5) 15. Bxe6 $1 $16 {[%emt 0:03:51]} fxe6 {[%emt 0:15:51]} (15... cxd4 16. exd4) 16. g5 $1 {[%emt 0:00:12]} Nd5 {[%emt 0:01:51]} (16... Kf7 $16) 17. Qxg6+ $18 {[%emt 0:01:09]} Kf8 {[%emt 0:00:02]} 18. Qxe6 {[%emt 0:24:19]} (18. Nxd5 $1 $18 {is the precise move to win. Threatens to win with Nf4.} exd5 19. e4) 18... Nc7 $2 {[%emt 0:05:44]} (18... Nxc3+ $16 {was worth a try.} 19. Bxc3 b4) 19. Qf5+ {[%emt 0:01:21]} Kg8 {[%emt 0:00:22]} 20. Ne4 {[%emt 0:08:43]} Nf8 {[%emt 0:03:34] [#] Repels d5} 21. Ba5 $1 {[%emt 0:17:06]} (21. Nxc5 Qc8 22. Qxc8 Rxc8 $16) (21. dxc5 $6 Qd5 (21... Qd3+ 22. Ka1 $15) 22. Qxd5+ Nxd5 $11) 21... Qd5 {[%emt 0:10:09]} 22. Qg4 {[%emt 0:08:11]} Nce6 {[%emt 0:01:36]} (22... Ne8 $142) 23. dxc5 {[%emt 0:01:47]} Qc6 {[%emt 0:00:40]} 24. h4 {[%emt 0:01:24][%cal Oe4f6] Black is weak on the dark squares} Nxc5 {[%emt 0:04:21]} 25. Rc1 {[%emt 0:02:24]} Qd5 {[%emt 0:02:14] [#]} 26. Nf6+ {[%emt 0:05:36][%mdl 512]} Bxf6 {[%emt 0:00:04]} (26... gxf6 27. gxf6+ Kf7 28. Qg7+ (28. fxe7 Nfe6 $18) 28... Ke6 29. Qxe7+ (29. Qxh8 Nfd7 $18) 29... Kf5 30. Rxc5) 27. gxf6 {[%emt 0:00:04][%csl Gf6][%cal Rg4g7]} g6 {[%emt 0:01:26] [#]} 28. h5 {[%emt 0:00:51]} Ncd7 $2 {[%emt 0:02:28]} (28... Nce6 $1 $14) 29. hxg6 $2 {[%emt 0:01:24]} ({Better is} 29. f7+ $18 Qxf7 (29... Kxf7 $2 30. hxg6+ Nxg6 31. Rhd1 $18) 30. Bc3 (30. Qe4 Re8 $11)) 29... Qd3+ {[%emt 0:00:05]} 30. Ka1 {[%emt 0:00:02] Really sharp!} Rxh1 {[%emt 0:00:52]} 31. Rxh1 {[%emt 0:00:57][%cal Oh1h8] White threatens Rh8+! and mate.} Qxg6 {[%emt 0:01:05]} 32. Qd4 {[%emt 0:00:33]} Nxf6 {[%emt 0:01:01]} 33. e4 {[%emt 0:00:11] Strongly threatening Rg1. White is more active.} (33. Bd8 $5 Qg2 34. Rd1 (34. Rc1 Ne6 $11) 34... Rxd8 35. Qxd8 Qxf3 36. e4 $16) 33... Rc8 $1 {[%emt 0:07:15]} 34. Rg1 {[%emt 0:00:35][%mdl 1024] White has compensation.} Kf7 {[%emt 0:00:23]} 35. Bc3 {[%emt 0:00:11]} (35. Qa7+ N6d7 36. a3 Qe6 $15) (35. e5 $5 Nh5 (35... Qh6 $2 36. Bd2 $18) 36. f4 $14 (36. Qa7+ $2 Ke8 $17)) 35... Qh6 {[%emt 0:01:15]} 36. a3 {[%emt 0:00:59]} N6d7 {[%emt 0:01:21]} 37. Qd5+ {[%emt 0:00:31]} Ke8 $1 {[%emt 0:00:46]} ({Don't blunder} 37... Qe6 $2 38. Rg7+ Ke8 39. Qh5+ Kd8 40. Ba5+ Rc7 (40... Nb6 41. Bxb6+) 41. Qg5+ (41. Bxc7+ Kxc7 42. Qc5+ Kb8 $16) 41... Kc8 42. Bxc7 Kxc7 43. Qc1+ Qc4 44. Qxc4+ bxc4 45. e5 $18) 38. Rd1 {[%emt 0:00:32]} Qe6 {[%emt 0:01:03]} 39. Qh5+ {[%emt 0:00:28]} Qf7 {[%emt 0:00:01]} 40. Qxf7+ {[%emt 0:00:30]} (40. Qg4 $11 {was preferrable.}) 40... Kxf7 $15 {[%emt 0:00:05]} 41. Rd6 {[%emt 0:00:18] Against Rc6} Nc5 {[%emt 0:04:33]} 42. Ka2 {[%emt 0:00:01]} Nfe6 {[%emt 0:01:47]} 43. Bb4 {[%emt 0:00:39]} Rc7 {[%emt 0:02:26]} 44. e5 {[%emt 0:00:45]} Rd7 $2 {[%emt 0:02:15][%mdl 8192]} (44... Ke8 $15 {keeps the upper hand.}) 45. Bxc5 $18 {[%emt 0:00:11]} Rxd6 {[%emt 0:00:37]} (45... Nxc5 $2 {is the wrong capture.} 46. e6+ Nxe6 47. Rxd7+ $18) (45... Ke7) 46. Bxd6 {[%emt 0:00:03][%mdl 4096] Endgame. KB-KN} Nd4 {[%emt 0:00:05][%cal Of7e6]} 47. f4 {[%emt 0:00:38]} Ke6 $2 {[%emt 0:00:05]} (47... Kg6 48. Bc5 Ne6) 48. Bc5 {[%emt 0:00:25] White is clearly winning.} Nf5 {[%emt 0:00:30]} 49. Kb3 {[%emt 0:00:38]} Kd5 {[%emt 0:00:10]} 50. Kb4 {[%emt 0:01:03]} Kc6 {[%emt 0:00:05]} 51. Bf8 {[%emt 0:00:49] And now e6 would win.} Ne3 {[%emt 0:00:31]} 52. e6 {[%emt 0:00:30] Black must now prevent Ka5.} Kd5 {[%emt 0:03:24] Weighted Error Value: White=0.25 (precise) /Black=0.42.  Loses game:     	---       	Black=3      Missed win:     	White=1     	---        Mistake:       	White=3     	Black=5      Inaccurate:     	White=3     	Black=3      OK:         	White=10    	Black=11     Best:        	White=5     	Black=4      Strong:       	White=2     	Black=3      Brilliant:      	White=1     	---} 1-0

[Event "1000GM Spring GM-A 2024"]
[Site "New York"]
[Date "2024.03.31"]
[Round "8.3"]
[White "Lomasov, Semyon"]
[Black "Novik, Maxim"]
[Result "1/2-1/2"]
[ECO "C54"]
[WhiteElo "2565"]
[BlackElo "2415"]
[Annotator "RC"]
[PlyCount "74"]
[EventDate "2024.03.26"]
[EventType "tourn"]
[EventCountry "USA"]
[SourceTitle "playchess.com"]
[Source "ChessBase"]
[SourceQuality "1"]
[TimeControl "5400+30"]

1. e4 {[%emt 0:06:38]} e5 {[%emt 0:01:01]} 2. Nf3 {[%emt 0:00:34]} Nc6 {[%emt 0:00:06]} 3. Bc4 {[%emt 0:00:05]} Nf6 {[%emt 0:00:39]} 4. d3 {[%emt 0:04:12]} Bc5 {[%emt 0:00:06]} 5. Bg5 {[%emt 0:00:23]} h6 {[%emt 0:01:51]} 6. Bh4 {[%emt 0:00:13]} d6 {[%emt 0:01:06]} 7. c3 {[%emt 0:00:47]} a6 {[%emt 0:00:30]} 8. Nbd2 {[%emt 0:02:45]} Ba7 {[%emt 0:00:40]} 9. O-O {[%emt 0:02:53]} g5 {[%emt 0:10:53]} 10. Bg3 {[%emt 0:00:18]} Bg4 {[%emt 0:00:31]} 11. a4 {[%emt 0:09:03]} Nh5 {[%emt 0:06:48]} 12. Kh1 {[%emt 0:01:08]} Qd7 {[%emt 0:06:42]} 13. b4 {[%emt 0:07:49]} Ne7 {[%emt 0:03:44]} 14. d4 {[%emt 0:14:04]} Ng6 {[%emt 0:02:31]} 15. h3 {[%emt 0:05:03]} Be6 {[%emt 0:17:19]} 16. d5 {[%emt 0:13:58]} Bxh3 {[%emt 0:12:44]} 17. Nh2 {[%emt 0:00:44]} Bxg2+ {[%emt 0:02:57]} 18. Kxg2 {[%emt 0:00:08]} Nhf4+ {[%emt 0:00:06]} 19. Kh1 {[%emt 0:02:32]} h5 {[%emt 0:00:07]} 20. Bxf4 {[%emt 0:09:12]} Nxf4 {[%emt 0:02:11]} 21. Ndf3 {[%emt 0:01:14]} O-O-O {[%emt 0:06:06]} 22. Ra2 {[%emt 0:02:16]} Rdg8 {[%emt 0:00:48]} 23. Rg1 {[%emt 0:03:22]} Nh3 {[%emt 0:05:03]} 24. Rg2 {[%emt 0:00:08]} g4 {[%emt 0:02:25]} 25. Nh4 {[%emt 0:00:55]} Nxf2+ {[%emt 0:00:42]} 26. Raxf2 {[%emt 0:00:13]} Bxf2 {[%emt 0:00:02]} 27. Rxf2 {[%emt 0:00:06]} g3 {[%emt 0:00:06]} 28. Rg2 {[%emt 0:07:11]} gxh2 {[%emt 0:00:25]} 29. Nf5 {[%emt 0:02:38]} Rxg2 {[%emt 0:01:52]} 30. Kxg2 {[%emt 0:00:01]} Qd8 {[%emt 0:02:09]} 31. Kxh2 {[%emt 0:01:31]} Kb8 {[%emt 0:01:36]} 32. Qd2 {[%emt 0:00:50]} Rg8 {[%emt 0:01:45]} 33. Be2 {[%emt 0:00:23]} Rg5 {[%emt 0:06:04]} 34. Qe3 {[%emt 0:00:42]} f6 {[%emt 0:01:07]} 35. c4 {[%emt 0:00:43]} Qd7 {[%emt 0:01:46]} 36. Bd1 {[%emt 0:02:49]} c6 {[%emt 0:02:28]} 37. Qb6 {[%emt 0:01:29]} Rg4 {[%emt 0:02:04]} 1/2-1/2

[Event "1000GM Spring GM-A 2024"]
[Site "New York"]
[Date "2024.03.31"]
[Round "8.4"]
[White "Mardov, Dimitar"]
[Black "Lu, Maximillian"]
[Result "1-0"]
[ECO "D82"]
[WhiteElo "2473"]
[BlackElo "2375"]
[Annotator "TA"]
[PlyCount "143"]
[EventDate "2024.03.26"]
[EventType "tourn"]
[EventCountry "USA"]
[SourceTitle "playchess.com"]
[Source "ChessBase"]
[SourceQuality "1"]
[TimeControl "5400+30"]

{[%evp 36,143,219,206,214,192,189,90,96,97,112,110,140,133,136,122,137,141,137,146,143,142,151,151,151,151,151,151,151,151,152,144,208,178,208,208,200,198,211,213,214,214,260,248,214,213,325,213,213,213,213,213,213,213,213,213,202,187,187,187,187,187,187,187,187,187,187,187,452,449,441,441,434,433,443,437,721,35,35,0,758,750,710,729,706,586,1229,1287,1438,1285,1135,836,6577,5766,8980,4775,29978,29978,29981,29982,29982,29983,29986,29987,29987,29988,29988,29989,29990,29990]} 1. d4 {[%emt 0:00:02]} Nf6 {[%emt 0:05:17]} 2. c4 {[%emt 0:00:08]} g6 {[%emt 0:01:22]} 3. Nc3 {[%emt 0:00:41]} d5 {[%emt 0:00:02]} 4. Bf4 {[%emt 0:00:42]} Bg7 {[%emt 0:00:27]} 5. e3 {[%emt 0:00:53]} c5 {[%emt 0:00:26]} 6. dxc5 {[%emt 0:01:11]} Qa5 {[%emt 0:01:13]} 7. Rc1 {[%emt 0:02:43]} Ne4 {[%emt 0:02:19]} 8. cxd5 {[%emt 0:02:49] D82: Grünfeld: 4 Bf4.} Nd7 {[%emt 0:04:37]} 9. Nge2 {[%emt 0:08:15]} Ndxc5 {[%emt 0:01:41]} 10. f3 {[%emt 0:03:12]} Nxc3 {[%emt 0:09:04]} 11. Nxc3 {[%emt 0:01:19]} Bd7 {[%emt 0:08:06]} 12. Be2 $146 {[%emt 0:08:05]} ({Predecessor:} 12. Qd2 Rc8 13. Rc2 O-O 14. Nd1 Qa4 15. Nc3 Qa5 16. Bc4 a6 17. Ne4 Qxd2+ 18. Kxd2 {1-0 Rodewis,T (2368)-Koch,M (2249) Oberliga Bayern 1415 2014 (8.2)}) 12... b5 {[%emt 0:09:50]} 13. O-O {[%emt 0:05:03]} Rc8 {[%emt 0:03:47]} 14. d6 {[%emt 0:09:02]} e6 {[%emt 0:09:27]} 15. Ne4 {[%emt 0:05:57]} b4 {[%emt 0:10:07]} 16. Nxc5 {[%emt 0:12:28]} Rxc5 {[%emt 0:00:07]} 17. Rxc5 {[%emt 0:00:07]} Qxc5 {[%emt 0:00:04]} 18. Qd2 {[%emt 0:00:20]} O-O {[%emt 0:10:05]} 19. Rc1 {[%emt 0:00:55]} Qb6 {[%emt 0:00:19]} 20. Kf1 {[%emt 0:12:16]} Rd8 {[%emt 0:07:45]} 21. Bg5 {[%emt 0:04:10]} (21. Rc7 $18 {and White stays clearly on top.}) 21... f6 $16 {[%emt 0:00:19]} 22. Bh4 {[%emt 0:01:21]} Be8 {[%emt 0:09:34] [#]} 23. Rd1 $1 {[%emt 0:02:34]} Qc5 {[%emt 0:00:45]} 24. e4 {[%emt 0:01:46]} Bf8 {[%emt 0:02:12]} 25. Qd4 {[%emt 0:07:48]} Rxd6 {[%emt 0:00:42]} 26. Qxc5 {[%emt 0:00:16]} Rxd1+ {[%emt 0:00:01]} 27. Bxd1 Bxc5 {[%emt 0:00:00]} 28. Bxf6 {[%emt 0:00:20]} Kf7 {[%emt 0:02:10]} 29. Be5 {[%emt 0:00:51]} Ke7 {[%emt 0:00:52]} 30. h4 {[%emt 0:01:25]} a5 {[%emt 0:01:40]} 31. b3 {[%emt 0:00:39]} Bb5+ {[%emt 0:00:34]} 32. Be2 {[%emt 0:00:14]} Bc6 {[%emt 0:00:01]} 33. Bc4 {[%emt 0:01:03]} Kd7 {[%emt 0:00:55]} (33... Bd6 $16 34. Bd4 Bc7) 34. Ke2 $18 {[%emt 0:00:12]} Be7 {[%emt 0:00:39]} 35. g3 {[%emt 0:01:21]} Bc5 {[%emt 0:00:23]} 36. g4 {[%emt 0:01:29]} Be7 {[%emt 0:00:40]} 37. g5 {[%emt 0:00:39]} Bc5 {[%emt 0:00:01]} 38. Bd3 {[%emt 0:01:03]} Bb6 {[%emt 0:00:54]} 39. f4 {[%emt 0:00:36]} Ke7 {[%emt 0:00:05]} 40. f5 {[%emt 0:01:36]} Be8 {[%emt 0:01:26]} (40... Bd7 $142 41. Kf3 Kf8) 41. f6+ {[%emt 0:01:14]} Kf7 {[%emt 0:00:11]} 42. Bc4 {[%emt 0:00:53]} Bc6 {[%emt 0:00:06] [#]} 43. Kf3 $1 {[%emt 0:00:13]} Bd7 {[%emt 0:00:24]} 44. Kg4 {[%emt 0:02:13]} Bc6 {[%emt 0:00:07]} 45. Bd3 {[%emt 0:00:18]} Be8 {[%emt 0:00:42]} 46. h5 {[%emt 0:00:21]} Bd7 {[%emt 0:02:02]} 47. Bc4 {[%emt 0:01:23]} Bc6 {[%emt 0:00:00]} 48. hxg6+ {[%emt 0:00:23]} hxg6 {[%emt 0:00:00]} 49. Kf3 {[%emt 0:00:15]} Bd7 {[%emt 0:00:00]} 50. Ke2 {[%emt 0:00:29]} Bc6 {[%emt 0:00:00]} 51. Kd3 {[%emt 0:00:25]} Bf2 $2 {[%emt 0:01:51]} (51... Ba8 52. Bb5 Bb7) 52. Bd4 {[%emt 0:00:23]} Bg3 {[%emt 0:00:25]} 53. Bb6 {[%emt 0:01:17]} a4 {[%emt 0:00:04]} 54. Be3 {[%emt 0:00:49]} axb3 {[%emt 0:00:05]} 55. axb3 {[%emt 0:00:23]} (55. Bxb3 Bb5+ 56. Bc4 Ba4 $18) 55... Be1 {[%emt 0:01:08]} (55... Bd6 $142 56. Bc1 Bc5) 56. Bd4 $2 {[%emt 0:00:49]} (56. Bd2 $18 Bg3 57. Kd4 (57. Bxb4 Bf4 $18)) 56... Bh4 $1 $14 {[%emt 0:00:17]} 57. Be3 $2 {[%emt 0:00:04][%mdl 8192]} (57. e5 $14 Bxg5 58. Be3) 57... Be1 $18 {[%emt 0:00:02]} 58. Bd2 {[%emt 0:01:23]} Bh4 {[%emt 0:00:01]} 59. Kd4 {[%emt 0:00:22]} Bg3 {[%emt 0:00:11]} 60. Bd3 {[%emt 0:00:37]} Bb7 {[%emt 0:00:31]} 61. Kc5 {[%emt 0:00:20]} ({Inferior is} 61. Bxb4 Bf2+ 62. Kc4 Ba6+ 63. Kc3 Be1+ 64. Kd4 (64. Kb2 Bxb4 65. Bxa6 Bd2 $11) 64... Bf2+ 65. Kc3 Be1+ 66. Kd4 (66. Kb2 Bxb4 67. Bxa6 Bd2 $11) 66... Bf2+ 67. Kc3 $11) 61... Bc7 {[%emt 0:02:19]} 62. Kxb4 {[%emt 0:00:07]} Bd6+ {[%emt 0:00:15]} 63. Kb5 {[%emt 0:00:07]} Ke8 {[%emt 0:00:41]} 64. Kb6 {[%emt 0:00:03]} Ba8 {[%emt 0:00:10]} 65. b4 {[%emt 0:00:15]} Kd7 {[%emt 0:00:05]} 66. b5 {[%emt 0:00:56]} Kc8 {[%emt 0:00:16]} 67. Ka5 {[%emt 0:00:44]} Kd7 {[%emt 0:00:16]} 68. Bb4 {[%emt 0:00:16]} Bxb4+ {[%emt 0:00:18]} 69. Kxb4 {[%emt 0:00:05]} e5 {[%emt 0:00:04]} 70. Kc5 {[%emt 0:00:05]} Bb7 {[%emt 0:00:08]} 71. Kb6 {[%emt 0:00:11]} Bc8 {[%emt 0:00:02]} 72. Ka7 {[%emt 0:00:17]} 1-0

[Event "1000GM Spring GM-A 2024"]
[Site "New York"]
[Date "2024.03.31"]
[Round "8.5"]
[White "Bortnyk, Mykola"]
[Black "Huston, Gus"]
[Result "1/2-1/2"]
[ECO "C25"]
[WhiteElo "2453"]
[BlackElo "2401"]
[Annotator "TA"]
[PlyCount "132"]
[EventDate "2024.03.26"]
[EventType "tourn"]
[EventCountry "USA"]
[SourceTitle "playchess.com"]
[Source "ChessBase"]
[SourceQuality "1"]
[TimeControl "5400+30"]

{[%evp 62,132,0,0,0,-8,0,-8,0,-8,-8,-49,-49,-90,-92,-102,-8,-8,-8,-8,-8,-8,-8,-8,-8,-8,-8,-8,-8,-56,-56,-39,-41,-41,-33,-119,-105,-118,-123,-110,-18,-60,0,-104,0,-64,-64,-78,-74,-74,0,0,0,0,0,0,0,0,0,0,0,0,0,0,0,0,0,0,0,0,0,0,0]} 1. e4 {[%emt 0:15:04]} e5 {[%emt 0:00:05]} 2. Nc3 {[%emt 0:00:37]} Nc6 {[%emt 0:00:16]} 3. g3 {[%emt 0:01:16]} Bc5 {[%emt 0:00:40]} 4. Bg2 {[%emt 0:00:07]} d6 {[%emt 0:01:55]} 5. Na4 {[%emt 0:00:29]} Be6 {[%emt 0:02:46]} 6. d3 {[%emt 0:02:08] C25: Vienna Game: Alternatives to 2...Nf6.} Qd7 {[%emt 0:02:12]} 7. Nxc5 {[%emt 0:00:45]} dxc5 {[%emt 0:00:01]} 8. Be3 {[%emt 0:00:08]} b6 {[%emt 0:01:35]} 9. f4 {[%emt 0:00:17]} f6 {[%emt 0:00:18]} 10. Nf3 {[%emt 0:00:33]} O-O-O {[%emt 0:02:35]} 11. O-O {[%emt 0:02:03]} Nge7 {[%emt 0:01:59]} 12. fxe5 $146 {[%emt 0:00:50]} ({Predecessor:} 12. a3 c4 13. fxe5 fxe5 14. dxc4 Qxd1 15. Rfxd1 Bxc4 16. b3 Be6 17. Bg5 Rxd1+ 18. Rxd1 {1-0 Durarbayli,V (2624)-Tan,J (2346) Saint Louis SPICE Cup op 8th 2014 (7)}) 12... Nxe5 {[%emt 0:00:32]} 13. Nxe5 {[%emt 0:03:56]} fxe5 {[%emt 0:00:02]} 14. b3 {[%emt 0:00:21]} Nc6 {[%emt 0:01:12]} 15. Qh5 {[%emt 0:01:13]} h6 {[%emt 0:03:09]} 16. Rf2 {[%emt 0:01:25]} Qe8 {[%emt 0:00:28]} 17. Qxe8 {[%emt 0:02:15]} Rdxe8 {[%emt 0:01:13]} 18. Raf1 {[%emt 0:00:07]} Kd7 {[%emt 0:00:46]} 19. Bf3 {[%emt 0:06:45]} Ref8 {[%emt 0:03:09]} 20. Kg2 {[%emt 0:00:42]} Ke7 {[%emt 0:07:11]} 21. c3 {[%emt 0:00:32]} Rf7 {[%emt 0:03:20]} 22. h4 {[%emt 0:01:20]} Rd8 {[%emt 0:03:17]} 23. Be2 {[%emt 0:00:07]} Rxf2+ {[%emt 0:00:47]} 24. Rxf2 {[%emt 0:00:04]} Rf8 {[%emt 0:00:50]} 25. g4 {[%emt 0:00:33]} Rxf2+ {[%emt 0:00:24]} 26. Kxf2 {[%emt 0:00:03]} a5 {[%emt 0:03:15]} 27. g5 {[%emt 0:00:28]} hxg5 {[%emt 0:00:07]} 28. Bxg5+ {[%emt 0:00:04]} Kd7 {[%emt 0:01:17]} 29. Kg3 {[%emt 0:00:40]} a4 {[%emt 0:01:32]} 30. bxa4 {[%emt 0:00:30]} Bxa2 {[%emt 0:00:03]} 31. h5 {[%emt 0:02:45]} Bb3 {[%emt 0:10:46]} 32. Kg4 {[%emt 0:03:31]} Ke6 {[%emt 0:00:42]} 33. Kh4 {[%emt 0:00:02]} Kf7 {[%emt 0:20:13]} 34. Bg4 {[%emt 0:00:20]} Ke8 {[%emt 0:01:21]} 35. Be3 {[%emt 0:09:14]} (35. h6 gxh6 36. Bh5+ Kf8 37. Bxh6+ Ke7 $17) 35... Bxa4 {[%emt 0:01:26]} 36. Be6 {[%emt 0:00:19]} Bb5 {[%emt 0:03:57]} 37. c4 {[%emt 0:00:12]} Ba4 {[%emt 0:00:01]} 38. Kg5 {[%emt 0:00:06]} Nb4 {[%emt 0:07:19]} (38... Ke7 $17 39. Bg4 Bc2) 39. Kg6 $11 {[%emt 0:13:16]} Kf8 {[%emt 0:00:31]} (39... Nxd3 $2 40. Kxg7 Ke7 41. Bf5 $18) 40. Bg5 $1 {[%emt 0:00:44]} Be8+ {[%emt 0:06:24]} (40... Nxd3 41. Bd8 $17) 41. Kf5 {[%emt 0:00:01]} Nxd3 {[%emt 0:00:29]} ({Don't do} 41... Bxh5 42. Bd8 $17) 42. Bd8 {[%emt 0:00:09]} c6 {[%emt 0:05:28]} 43. h6 $1 {[%emt 0:01:34]} gxh6 {[%emt 0:00:21]} 44. Kf6 $1 {[%emt 0:00:51]} Bh5 {[%emt 0:00:01]} 45. Bxb6 {[%emt 0:00:18]} (45. Bd7 $1 $11 {is superior.}) 45... Ke8 $15 {[%emt 0:00:58]} 46. Bc7 {[%emt 0:34:46]} Bf3 {[%emt 0:00:42]} 47. Bf5 {[%emt 0:00:00]} h5 {[%emt 0:01:31]} 48. Bg6+ {[%emt 0:00:00]} (48. Bd6 $15) 48... Kd7 $17 {[%emt 0:00:12]} 49. Bb8 {[%emt 0:00:00] [#]} Bg4 $1 {[%emt 0:00:44]} 50. Kg5 {[%emt 0:00:00]} Ke7 {[%emt 0:00:48]} (50... Nb2 $17 51. Bf5+ Ke7 52. Bxg4 hxg4 53. Bxe5 Nxc4) 51. Ba7 {[%emt 0:00:00]} Kd7 {[%emt 0:03:29]} 52. Bb8 $1 {[%emt 0:00:00]} Bf3 {[%emt 0:01:14]} 53. Kf6 {[%emt 0:00:00]} Kc8 {[%emt 0:00:47]} 54. Bxe5 {[%emt 0:00:00]} Nxe5 {[%emt 0:00:06]} 55. Kxe5 {[%emt 0:00:00] [#]} Kd7 {[%emt 0:00:45]} ({Black should play} 55... Kc7 $1 $17 {And now ...h4 would win.} 56. Kf4 Bg4) 56. Kf6 $1 $11 {[%emt 0:00:00]} Bg4 {[%emt 0:00:31]} 57. e5 {[%emt 0:00:00]} h4 {[%emt 0:00:14]} 58. Bf7 {[%emt 0:00:00]} h3 {[%emt 0:00:31]} 59. e6+ {[%emt 0:00:00]} Kc7 {[%emt 0:00:25]} (59... Kd6 $5 60. e7 $8 Bd7 $11) 60. e7 {[%emt 0:00:00]} Bd7 {[%emt 0:00:49]} 61. Be6 {[%emt 0:00:00]} h2 {[%emt 0:00:03]} 62. Bxd7 {[%emt 0:00:00]} h1=Q {[%emt 0:00:23]} (62... h1=R $2 63. e8=Q (63. e8=R Kxd7 64. Re7+ Kd6 $17) 63... Rf1+ 64. Ke7 Re1+ 65. Be6 Rd1 66. Qa8 Kb6 67. Qb8+ Ka5 68. Qa8+ Kb4 69. Qxc6 $18) (62... Kxd7 $5 63. Kf7 $8 h1=Q 64. e8=Q+ Kc7 65. Qe7+ Kb6 66. Qd8+ Ka7 $11) 63. e8=Q {[%emt 0:00:00]} (63. e8=R $2 {is the wrong capture.} Kxd7 64. Re7+ Kd6 $19 (64... Kd8 $2 65. Rg7 $19)) 63... Qh6+ {[%emt 0:00:07]} 64. Kf7 {[%emt 0:00:00]} Qh7+ {[%emt 0:00:29]} 65. Kf6 {[%emt 0:00:11]} Qxd7 {[%emt 0:00:36]} 66. Qxd7+ {[%emt 0:00:05]} Kxd7 {[%emt 0:00:04]} 1/2-1/2